Cogmind - Beta 16 @@@ ROGUE MODE // 2025.12.23 @ 08:29:33 Player: Yellow Fin Result: Escaped! Performance ------------- Evolutions (9) 4500 Regions Visited (14) 2800 Robots Destroyed (55) 275 Value Destroyed (904) 904 Prototype IDs (42) 840 Alien Tech Used (0) 0 Bonus (3300) 3300 TOTAL SCORE: 12619 Bonus ------- Aligned with FarCom 300 Win 3000 Cogmind --------- Core Integrity 1600/1600 Matter 280/300 Energy 134/260 System Corruption 0% Temperature Hot (292) Movement Flying (5) Location To Epsilon Eridani Parts ------- > --- POWER (3) -------- Light Deuterium Engine Micro Fission Core Mini Fusion Reactor > --- PROPULSION (6) --- Cooled VTOL Module Cooled VTOL Module Cooled VTOL Module Cooled Nuclear Pulse Thruster Cooled Q-thruster Cooled Q-thruster > --- UTILITY (14) ----- Advanced Cooling System Advanced Coolant Injector Structural Scanner Advanced Terrain Scanner Advanced Reaction Control System Improved Phase Shifter Hacking Suite Hacking Suite Hacking Suite Hacking Suite Hacking Suite Improved Hacking Suite Improved System Shield Advanced System Shield > --- WEAPON (2) ------- Mini Smartbomb Launcher Power Sword > --- INVENTORY (5) ---- System Restoration Module Peak State ------------ > --- POWER ------------ Light Deuterium Engine Micro Fission Core Mini Fusion Reactor > --- PROPULSION ------- Cooled VTOL Module Cooled VTOL Module Cooled VTOL Module Cooled Nuclear Pulse Thruster Cooled Q-thruster Cooled Q-thruster > --- UTILITY ---------- Advanced Cooling System Advanced Coolant Injector Structural Scanner Advanced Terrain Scanner Advanced Reaction Control System Improved Phase Shifter Hacking Suite Hacking Suite Hacking Suite Hacking Suite Hacking Suite Improved Hacking Suite Improved System Shield Advanced System Shield > --- WEAPON ----------- Mini Smartbomb Launcher Power Sword > --- INVENTORY -------- System Restoration Module [Rating: 135] Favorites ----------- Power Ion Engine Engine Ion Engine Power Core Light Fission Core Reactor Mini Fusion Reactor Propulsion Cooled VTOL Module Wheel Wheel Flight Unit Cooled VTOL Module Utility Hacking Suite Device Structural Scanner Storage Large Storage Unit Processor Advanced Terrain Scan Processor Hackware Hacking Suite Protection Improved Light Armor Plating Weapon Mini Grenade Launcher Energy Gun Medium Laser Ballistic Gun Assault Rifle Ballistic Cannon Light Cannon Launcher Mini Grenade Launcher Impact Weapon Maul Slashing Weapon Power Sword Piercing Weapon Spear Build | -11 -10 -10 -10 -9 -8 -7 -6 -6 -6 -5 -4 -3 -2 -1 ------- Run | Yrd Mat Min Exi Min Mat Fac Fac Was Fac Fac Fac Res Res Acc Slots Evolved 18 | . . . . . 4 2 2 . . 2 2 2 2 2 Power 2 | . . . . . . . . . . . 1 . 1 . Propulsion 4 | . . . . . . 1 1 . . . 1 . 1 . Utility 12 | . . . . . 4 1 1 . . 2 . 2 . 2 Weapon . | . . . . . . . . . . . . . . . Parts Attached 98 | 7 6 4 1 . 14 8 5 1 17 10 5 11 6 3 Power 15 | 1 1 2 . . 2 1 . . 1 1 3 1 1 1 Engine 6 | 1 1 1 . . 2 . . . . . . . . 1 Core 6 | . . 1 . . . 1 . . 1 1 2 . . . Reactor 3 | . . . . . . . . . . . 1 1 1 . Propulsion 22 | 2 1 1 . . 4 1 1 1 5 1 1 4 . . Treads . | . . . . . . . . . . . . . . . Leg . | . . . . . . . . . . . . . . . Wheel 5 | 2 1 1 . . 1 . . . . . . . . . Hover . | . . . . . . . . . . . . . . . Flight 17 | . . . . . 3 1 1 1 5 1 1 4 . . Utility 49 | 2 2 1 . . 6 3 4 . 10 8 1 5 5 2 Device 14 | 1 . . . . 2 2 1 . 3 . . 3 1 1 Storage 3 | 1 2 . . . . . . . . . . . . . Processor 6 | . . . . . 2 . . . 2 1 . 1 . . Hackware 25 | . . . . . 2 1 3 . 5 7 1 1 4 1 Protection 1 | . . 1 . . . . . . . . . . . . Artifact . | . . . . . . . . . . . . . . . Weapon 12 | 2 2 . 1 . 2 3 . . 1 . . 1 . . Energy Gun 2 | 1 . . 1 . . . . . . . . . . . Energy Cannon . | . . . . . . . . . . . . . . . Ballistic Gun 1 | 1 . . . . . . . . . . . . . . Ballistic Cannon 1 | . 1 . . . . . . . . . . . . . Launcher 3 | . 1 . . . 1 . . . . . . 1 . . Special Weapon . | . . . . . . . . . . . . . . . Impact Weapon 1 | . . . . . 1 . . . . . . . . . Slashing Weapon 3 | . . . . . . 2 . . 1 . . . . . Piercing Weapon 1 | . . . . . . 1 . . . . . . . . Special Melee Weapon . | . . . . . . . . . . . . . . . Unidentified Prototypes 8 | . . . . . 1 . . . 1 1 1 4 . . Parts Lost 7 | . . . . . 1 1 . . 4 . . . 1 . Power 1 | . . . . . . . . . . . . . 1 . Propulsion 3 | . . . . . 1 . . . 2 . . . . . Utility 3 | . . . . . . 1 . . 2 . . . . . Weapon . | . . . . . . . . . . . . . . . Highest Loss Streak 2 | . . . . . 1 1 . . 2 . . . 1 . To Critical Strikes . | . . . . . . . . . . . . . . . Average Backups 6 | 3 10 14 13 14 12 3 4 5 4 4 4 4 4 2 Power . | . 1 2 2 2 1 . . . . . 1 1 . . Propulsion 1 | 1 4 4 4 4 3 . . . . . 1 1 . . Utility 3 | . 2 5 5 5 3 2 4 5 4 2 2 2 3 2 Weapon . | . 1 2 2 3 3 . . . . . . . . . Tool/Special . | . . . . . . . . . . . . . . . Unused Backups 32 | 1 4 2 . 1 6 2 3 . 5 3 4 . . 1 Power 4 | . . 1 . . 1 1 . . . 1 . . . . Propulsion 3 | . 3 . . . . . . . . . . . . . Utility 21 | 1 . 1 . 1 2 1 3 . 5 2 4 . . 1 Weapon 4 | . 1 . . . 3 . . . . . . . . . Tool/Special . | . . . . . . . . . . . . . . . Average Slot Usage (%) 97 | . 100 100 92 85 88 97 99 100 96 97 99 99 94 99 Engine 3 | . 14 14 14 14 8 . . . . . . . . 3 Core 3 | . . . . . . 7 6 6 5 4 5 2 2 4 Reactor 1 | . . . . . . . . . . . 4 5 8 4 Wheel 7 | . 28 28 28 28 17 . . . . . . . . . Flight 16 | . . . . . . 23 25 26 24 23 25 23 24 24 Device 12 | . 14 4 . . 17 15 12 13 12 10 9 18 14 16 Storage 3 | . 14 14 14 14 9 . . . . . . . . . Processor 6 | . . . . . 17 15 9 6 6 5 5 4 4 4 Hackware 21 | . . . . . . 19 29 33 33 39 36 33 31 35 Protection 2 | . . 9 14 14 8 . . . . . . . . . Energy Gun 2 | . 14 . 6 14 8 . . . . . . . . . Ballistic Cannon 1 | . 7 14 7 . . . . . . . . . . . Launcher 5 | . . 14 7 . . 7 6 6 5 5 5 4 4 4 Slashing Weapon 3 | . . . . . . 5 6 6 6 5 5 3 4 4 Peak Build Rating 135 | 8 9 13 25 25 37 35 45 47 63 75 91 119 131 135 Average Rating 50 | 5 8 10 17 25 33 32 41 44 54 69 87 106 123 129 On Entrance 45 | . 7 9 11 25 25 26 35 42 47 62 72 88 119 119 Avg Prop Armor Cover (%) 3 | . . . . . . . . . . . 3 . . . Naked Turns . | . . . . . . . . . . . . . . . Heaviest Build 40 | 15 32 34 36 36 40 15 12 12 13 16 21 30 35 35 Greatest Support 47 | 20 20 20 20 20 20 15 20 21 21 21 37 30 35 47 Greatest Overweight (x) 3 | 1 1 1 1 1 3 . . . . . . . . . Average Overweight (x) . | . . 1 1 1 1 . . . . . . . . . Largest Inventory Capacity 20 | 8 20 15 15 15 15 5 5 5 5 5 5 5 5 5 Average Capacity 7 | 7 13 15 15 15 14 5 5 5 5 5 5 5 5 5 Most Carried 15 | 6 14 15 15 15 15 5 5 5 5 5 5 5 5 4 Average Carried 6 | 3 10 14 13 14 12 3 4 5 4 4 4 4 4 2 Final Capacity 15 | 8 15 15 15 15 5 5 5 5 5 5 5 5 5 5 Final Carried 15 | 5 14 14 14 15 4 5 5 5 5 5 5 5 5 1 Class Distribution -------------------- 36% | Hacker-Scout 25% | Wizard-Scout 23% | Mutant 7% | Scavenger-Skirmisher Dominant Class ---------------- Mutant | -10/Materials Mutant | -10/Mines Mutant | -10/Exiles Mutant | -9/Mines Scavenger-Skirmisher | -8/Materials Hacker-Scout | -7/Factory Hacker-Scout | -6/Factory Hacker-Scout | -6/Waste Hacker-Scout | -6/Factory Wizard-Scout | -5/Factory Wizard-Scout | -4/Factory Wizard-Scout | -3/Research Wizard-Scout | -2/Research Wizard-Scout | -1/Access Resources | -11 -10 -10 -10 -9 -8 -7 -6 -6 -6 -5 -4 -3 -2 -1 ----------- Run | Yrd Mat Min Exi Min Mat Fac Fac Was Fac Fac Fac Res Res Acc Matter Collected 1996 | 313 207 95 77 . 130 100 47 . 371 261 21 159 . 215 Remotely . | . . . . . . . . . . . . . . . Salvage Created 1823 | 86 349 52 . . 389 51 47 . 367 147 21 159 . 155 Parts 126 | 8 35 5 . . 27 1 3 . 15 3 4 12 . 13 Haulers Intercepted 1 | . 1 . . . . . . . . . . . . . Recyclers Shooed 1 | 1 . . . . . . . . . . . . . . Parts Field Recycled . | . . . . . . . . . . . . . . . Retrieved Matter . | . . . . . . . . . . . . . . . Parts Self-Destructed . | . . . . . . . . . . . . . . . Prevented . | . . . . . . . . . . . . . . . Parts Restored . | . . . . . . . . . . . . . . . Kills | -11 -10 -10 -10 -9 -8 -7 -6 -6 -6 -5 -4 -3 -2 -1 ------- Run | Yrd Mat Min Exi Min Mat Fac Fac Was Fac Fac Fac Res Res Acc Combat Hostiles Destroyed 23 | . 10 4 . . 8 1 . . . . . . . . Guns 16 | . 9 . . . 7 . . . . . . . . . Cannons 2 | . 1 1 . . . . . . . . . . . . AOE 3 | . . 3 . . . . . . . . . . . . Classes Destroyed 11 | 1 5 . . . 3 . 1 . 1 . . . . . Worker 3 | . . . . . . . 2 . 1 . . . . . Builder 9 | . 2 1 . . . . . . 2 . . 3 . 1 Tunneler 5 | 5 . . . . . . . . . . . . . . Hauler 1 | . 1 . . . . . . . . . . . . . Recycler 5 | . . . . . . . . . 2 1 . 1 . 1 Operator 5 | . . . . . 1 . . . 1 . 2 . . 1 Watcher 4 | . 1 . . . 3 . . . . . . . . . Swarmer 13 | . 6 3 . . 4 . . . . . . . . . Grunt 6 | . 4 1 . . 1 . . . . . . . . . Sentry 3 | . . . . . 2 1 . . . . . . . . Hunter 1 | . . . . . 1 . . . . . . . . . Best Kill Streak 6 | 2 2 3 . . 6 1 2 . 2 1 1 3 . 1 Combat Bots Only 6 | . 2 3 . . 6 1 . . . . . . . . Max Kills in Single Turn 1 | 1 1 1 . . 1 1 1 . 1 1 1 1 . 1 Gunslinging . | . . . . . . . . . . . . . . . Exploded 1 | . . 1 . . . . . . . . . . . . Melee . | . . . . . . . . . . . . . . . Uniques/NPCs Destroyed . | . . . . . . . . . . . . . . . Combat | -11 -10 -10 -10 -9 -8 -7 -6 -6 -6 -5 -4 -3 -2 -1 -------- Run | Yrd Mat Min Exi Min Mat Fac Fac Was Fac Fac Fac Res Res Acc Hostile Shots Fired 131 | . 38 9 . . 27 38 . . 3 . 3 . 1 12 Missed 57 | . 6 2 . . 9 28 . . 1 . 2 . . 9 Hits 74 | . 32 7 . . 18 10 . . 2 . 1 . 1 3 Projectile 74 | . 32 7 . . 18 10 . . 2 . 1 . 1 3 AOE 2 | . . . . . . . . . . . 2 . . . Critical Strikes 3 | . 2 1 . . . . . . . . . . . . Damage Taken 1292 | . 325 128 . . 208 72 19 . 298 . 85 . 91 66 Core 167 | . 54 28 . . 35 28 . . 6 . 16 . . . Absorbed by Shields . | . . . . . . . . . . . . . . . Regen/Repaired (Parts) 280 | . . . . . 9 . . . 195 23 . 53 . . Core Remaining (%) 95 | 100 . . . 67 93 96 . . 99 100 98 100 100 100 Volleys Fired 75 | 18 40 13 . . . 3 1 . . . . . . . Largest 2 | 2 2 2 . . . 1 1 . . . . . . . Hottest 80 | 70 80 60 . . . 30 30 . . . . . . . Shots Fired 178 | 36 80 18 . . 39 3 1 . 1 . . . . . Gun 139 | 36 64 . . . 39 . . . . . . . . . Cannon 29 | . 16 13 . . . . . . . . . . . . Launcher 10 | . . 5 . . . 3 1 . 1 . . . . . Special . | . . . . . . . . . . . . . . . Kinetic 71 | 18 40 13 . . . . . . . . . . . . Thermal 97 | 18 40 . . . 39 . . . . . . . . . Explosive 10 | . . 5 . . . 3 1 . 1 . . . . . Electromagnetic . | . . . . . . . . . . . . . . . Robot Hit Streak 10 | 5 9 2 . . 10 . . . . . . . . . Robot Miss Streak 7 | 5 7 3 . . 4 . . . . . . . . . Penetration Max . | . . . . . . . . . . . . . . . Secondary Targets . | . . . . . . . . . . . . . . . Autonomous 39 | . . . . . 39 . . . . . . . . . Shots Hit Robots 127 | 20 43 7 . . 29 3 2 . 9 1 3 6 . 4 Core Hits 57 | 5 21 5 . . 11 1 2 . 5 1 1 3 . 2 Critical Kills . | . . . . . . . . . . . . . . . Critical Parts Destroyed 2 | . . . . . . 2 . . . . . . . . Critical Strikes 8 | 1 4 1 . . . 2 . . . . . . . . Burn 3 | 1 2 . . . . . . . . . . . . . Blast 3 | . 2 1 . . . . . . . . . . . . Smash 2 | . . . . . . 2 . . . . . . . . Melee Attacks 142 | . . . . . 1 24 24 . 29 4 15 29 3 13 Impact 9 | . . . . . 1 8 . . . . . . . . Slashing 132 | . . . . . . 15 24 . 29 4 15 29 3 13 Piercing 1 | . . . . . . 1 . . . . . . . . Sneak Attacks 17 | . . . . . . . 2 . 7 1 . 4 . 3 Combat Hostiles . | . . . . . . . . . . . . . . . Follow-up Attacks . | . . . . . . . . . . . . . . . Damage Inflicted 4014 | 256 572 239 . . 854 81 159 . 683 107 224 485 . 354 Guns 1560 | 256 450 . . . 854 . . . . . . . . . Cannons 263 | . 122 141 . . . . . . . . . . . . Explosions 98 | . . 98 . . . . . . . . . . . . Melee 2093 | . . . . . . 81 159 . 683 107 224 485 . 354 Ramming . | . . . . . . . . . . . . . . . Kinetic 531 | 104 286 141 . . . . . . . . . . . . Thermal 1292 | 152 286 . . . 854 . . . . . . . . . Explosive 98 | . . 98 . . . . . . . . . . . . Electromagnetic . | . . . . . . . . . . . . . . . Impact 81 | . . . . . . 81 . . . . . . . . Slashing 2012 | . . . . . . . 159 . 683 107 224 485 . 354 Piercing . | . . . . . . . . . . . . . . . Highest Corruption 8 | . . . . . . . . 8 8 . . . . . Average Corruption 4 | . . . . . . . . 8 4 . . . . . Corruption Purged 8 | . . . . . . . . . 8 . . . . . Corruption Blocked . | . . . . . . . . . . . . . . . Effects 12 | . . . . . . . . . 12 . . . . . Message Errors 1 | . . . . . . . . . 1 . . . . . Matter Fused 4 | . . . . . . . . . 4 . . . . . Heat Flow Errors 2 | . . . . . . . . . 2 . . . . . Energy Discharges 2 | . . . . . . . . . 2 . . . . . Parts Fused 1 | . . . . . . . . . 1 . . . . . Data Loss (minor) 1 | . . . . . . . . . 1 . . . . . Misfires 1 | . . . . . . . . . 1 . . . . . Overload Shots . | . . . . . . . . . . . . . . . Overflow Damage 495 | . . 4 . . . 51 . . 200 . 73 53 . 114 Projectiles 4 | . . 4 . . . . . . . . . . . . Explosions 20 | . . . . . . . . . 20 . . . . . Melee 471 | . . . . . . 51 . . 180 . 73 53 . 114 Knockbacks 5 | . 3 2 . . . . . . . . . . . . Impact . | . . . . . . . . . . . . . . . Kinetic 5 | . 3 2 . . . . . . . . . . . . Secondary . | . . . . . . . . . . . . . . . Self-Inflicted Damage 132 | . . 67 . . . . 19 . 46 . . . . . Shots 5 | . . 3 . . . . 1 . 1 . . . . . Rammed . | . . . . . . . . . . . . . . . Targets Rammed . | . . . . . . . . . . . . . . . Kicked . | . . . . . . . . . . . . . . . Crushed . | . . . . . . . . . . . . . . . Highest Temperature 346 | 45 168 24 . . . . . 36 255 346 321 4 186 236 Average Temperature 36 | 18 46 10 . . . . . 20 99 172 18 1 59 86 Received Heat Transfer 207 | . 138 33 . . 18 18 . . . . . . . . Effects 1 | . . . . . . . . . . . 1 . . . Short Circuit 1 | . . . . . . . . . . . 1 . . . Siege Activations . | . . . . . . . . . . . . . . . Martial Activations . | . . . . . . . . . . . . . . . Shielding Activations . | . . . . . . . . . . . . . . . Robots Disrupted . | . . . . . . . . . . . . . . . Combat Hostiles . | . . . . . . . . . . . . . . . Robots Corrupted 1 | . . . . . . 1 . . . . . . . . Combat Hostiles 1 | . . . . . . 1 . . . . . . . . Parts Fried 1 | . . . . . . 1 . . . . . . . . Impact Corruptions 2 | . . . . . . 2 . . . . . . . . Robots Melted 1 | . . . . . 1 . . . . . . . . . Combat Hostiles 1 | . . . . . 1 . . . . . . . . . Parts Melted 4 | 1 1 . . . 2 . . . . . . . . . Heat Transferred 2590 | 518 999 . . . 1073 . . . . . . . . . Parts Sabotaged . | . . . . . . . . . . . . . . . Parts Stolen . | . . . . . . . . . . . . . . . Parts Stripped . | . . . . . . . . . . . . . . . Power Chain Reactions . | . . . . . . . . . . . . . . . Alert | -11 -10 -10 -10 -9 -8 -7 -6 -6 -6 -5 -4 -3 -2 -1 ------- Run | Yrd Mat Min Exi Min Mat Fac Fac Was Fac Fac Fac Res Res Acc Maximum Alert Level . | . . . . . . . . . . . . . . . Low Security (%) 100 | 100 100 100 . 100 100 100 100 100 100 100 100 100 100 100 Level 1 . | . . . . . . . . . . . . . . . Level 2 . | . . . . . . . . . . . . . . . Level 3 . | . . . . . . . . . . . . . . . Level 4 . | . . . . . . . . . . . . . . . Level 5 . | . . . . . . . . . . . . . . . High Security . | . . . . . . . . . . . . . . . Max Security . | . . . . . . . . . . . . . . . Peak Influence 162 | 5 162 94 . . 139 40 32 . 33 36 26 41 29 129 Initial 27 | . . 27 . . . 9 . . . . . 7 23 . Average 17 | 1 83 24 . . 52 3 2 . 2 5 2 7 5 21 Influence Increases 1778 | 25 359 129 . . 258 136 79 . 206 105 88 164 15 214 Destroy 0b10 Robot/C 460 | . 200 80 . . 160 20 . . . . . . . . Destroy 0b10 Robot/NC 160 | 25 20 5 . . 20 . 10 . 30 5 10 20 . 15 Destroy Leader 110 | . 34 20 . . 46 10 . . . . . . . . Successful Hack 367 | . 12 . . . 9 46 40 . 86 79 24 55 6 10 Disable Machine 15 | . . . . . . . . . 15 . . . . . Destroy Structure 231 | . 3 24 . . 8 30 29 . 30 6 24 44 9 24 Partial Spotted 135 | . 15 . . . . . . . 30 15 15 15 . 45 Lose Combat Pursuer 300 | . 75 . . . 15 30 . . 15 . 15 30 . 120 Influence Decreases 1649 | 25 288 200 . . 236 158 79 . 205 106 73 137 57 85 Entered New Map 85 | . . 44 . . . 13 . . . 1 . 8 19 . Time Decay 1481 | 25 288 156 . . 226 135 79 . 177 105 65 119 38 68 Lost Part 48 | . . . . . 10 10 . . 28 . . . . . Lost Ally 16 | . . . . . . . . . . . 6 10 . . Purge Threat 19 | . . . . . . . . . . . 2 . . 17 Squads Dispatched 34 | . . 1 . . . 3 4 . 7 4 5 6 2 2 Investigation 17 | . . 1 . . . 2 2 . 4 2 2 3 1 . Extermination 15 | . . . . . . 1 2 . 2 2 2 3 1 2 Reinforcement 2 | . . . . . . . . . 1 . 1 . . . Assault . | . . . . . . . . . . . . . . . Garrison . | . . . . . . . . . . . . . . . Intercept . | . . . . . . . . . . . . . . . Searches Triggered . | . . . . . . . . . . . . . . . Unchained Authorized 3 | . . . . . . . . . . . . 1 1 1 Construction Impeded . | . . . . . . . . . . . . . . . Haulers Reinforced . | . . . . . . . . . . . . . . . Active Scanning Responses . | . . . . . . . . . . . . . . . Cargo Convoy Interrupts . | . . . . . . . . . . . . . . . Stealth | -11 -10 -10 -10 -9 -8 -7 -6 -6 -6 -5 -4 -3 -2 -1 --------- Run | Yrd Mat Min Exi Min Mat Fac Fac Was Fac Fac Fac Res Res Acc Distress Signals 4 | . . . . . 1 . . . 1 . . 1 . 1 Communications Jammed . | . . . . . . . . . . . . . . . Distress Signals . | . . . . . . . . . . . . . . . Times Spotted 83 | . 16 5 . . 11 6 1 4 4 2 8 6 . 20 Peak Tracking Total 14 | . 3 3 . . 7 3 1 4 3 1 4 4 1 14 Tactical Retreats 13 | . 3 . . . 1 2 . . 1 . 1 3 . 2 ECM-based Alert Blocks 3 | . . . . . . 1 . . . . . 2 . . Traps | -11 -10 -10 -10 -9 -8 -7 -6 -6 -6 -5 -4 -3 -2 -1 ------- Run | Yrd Mat Min Exi Min Mat Fac Fac Was Fac Fac Fac Res Res Acc Traps Triggered 7 | . . . . . . . 3 . 3 . . 1 . . Indirectly . | . . . . . . . . . . . . . . . Trap Hack Attempts . | . . . . . . . . . . . . . . . Triggered . | . . . . . . . . . . . . . . . Disarmed 7 | . . . . . . . . . . . . . . 7 Reprogrammed . | . . . . . . . . . . . . . . . Reused . | . . . . . . . . . . . . . . . Traps Extracted . | . . . . . . . . . . . . . . . Installed . | . . . . . . . . . . . . . . . Triggered . | . . . . . . . . . . . . . . . Machines | -11 -10 -10 -10 -9 -8 -7 -6 -6 -6 -5 -4 -3 -2 -1 ---------- Run | Yrd Mat Min Exi Min Mat Fac Fac Was Fac Fac Fac Res Res Acc Machines Disabled 1 | . . . . . . . . . 1 . . . . . Max in Single Turn 1 | . . . . . . . . . 1 . . . . . Garrison Access 9 | . . . . . . 2 1 . 2 2 1 . 1 . Machines Repaired . | . . . . . . . . . . . . . . . Machines Dismantled . | . . . . . . . . . . . . . . . Machines Sabotaged . | . . . . . . . . . . . . . . . Overloaded Fab Kills . | . . . . . . . . . . . . . . . Hacking | -11 -10 -10 -10 -9 -8 -7 -6 -6 -6 -5 -4 -3 -2 -1 --------- Run | Yrd Mat Min Exi Min Mat Fac Fac Was Fac Fac Fac Res Res Acc Machines Accessed 97 | . 2 1 2 1 4 19 9 . 19 13 9 9 5 4 Terminals 49 | . 1 . . . 2 14 5 . 7 5 4 5 2 4 Fabricators 18 | . . . . . . 2 2 . 5 3 2 2 2 . Repair Stations 7 | . 1 . . . 1 . . . 3 1 . 1 . . Recycling Units 3 | . . . . . . . . . 1 1 . 1 . . Scanalyzers 7 | . . . . . 1 1 1 . 1 1 2 . . . Garrison Access 9 | . . . . . . 2 1 . 2 2 1 . 1 . Total Hacks 367 | . 3 1 5 1 13 49 28 . 67 48 36 51 33 32 Successful 251 | . 2 1 5 1 9 19 18 . 51 34 25 34 26 26 Failed 114 | . 1 . . . 4 30 9 . 15 14 11 17 7 6 Catastrophic 15 | . . . . . 1 3 4 . . 2 . 3 1 1 Database Lockouts 2 | . . . . . . . 1 . 1 . . . . . Manual 148 | . . . 1 . 2 28 9 . 19 18 19 19 14 19 Terminals 222 | . 1 . . . 5 36 18 . 22 27 24 34 23 32 Fabricators 59 | . . . . . . 5 4 . 20 10 6 6 8 . Repair Stations 31 | . 2 . . . 3 . . . 18 3 . 5 . . Recycling Units 8 | . . . . . . . . . 1 1 . 6 . . Scanalyzers 28 | . . . . . 5 4 5 . 4 5 5 . . . Garrison Access 12 | . . . . . . 4 1 . 2 2 1 . 2 . Terminal Hacks 109 | . 1 1 5 1 3 6 7 . 11 12 11 18 13 20 Record 5 | . . . 4 . . . 1 . . . . . . . Part Schematic 11 | . . . . . . 2 . . 2 1 5 1 . . Prototype ID Bank 3 | . . . . . . . . . . . 1 1 1 . Open Door 3 | . . 1 . 1 . . . . . . . . . 1 Level Access Points 9 | . . . . . 1 1 1 . 1 1 1 1 1 1 Branch Access Points 1 | . . . . . . . . . . 1 . . . . Machine Index 4 | . . . . . . 1 1 . . 1 1 . . . Terminal Index 5 | . . . . . . . . . 1 . . 1 2 1 Fabricator Index 2 | . . . . . . . . . . . . 1 1 . Repair Station Index 2 | . . . . . . . . . . . . 1 . 1 Scanalyzer Index 1 | . . . . . . . . . . . . . . 1 Garrison Index 1 | . . . . . . . . . . . . . . 1 Alert Level 6 | . . . . . 1 . . . 1 1 . 1 . 2 Unreport Threat 2 | . . . . . . . . . . . 1 . . 1 Locate Traps 18 | . 1 . . . 1 1 2 . 3 3 . 3 2 2 Disarm Traps 2 | . . . . . . . . . . . . . . 2 Dispatch Records 6 | . . . . . . . 1 . . 1 1 1 1 1 Maintenance Status 3 | . . . . . . . . . 1 . . . 1 1 Security Status 2 | . . . . . . . . . . . . 1 1 . Extermination Status 1 | . . . . . . . . . . . . 1 . . Assault Status 1 | . . . . . . . . . . . . 1 . . Recall Investigation 1 | . . . . . . . . . . . . 1 . . Recall Extermination 6 | . . . . . . . . . 1 1 1 2 . 1 Registered Components 7 | . . . . . . 1 1 . 1 1 . 1 1 1 Registered Prototypes 2 | . . . . . . . . . . 1 . . 1 . Zone Layout 4 | . . . . . . . . . . . . . 1 3 Proto ID Catalog 1 | . . . 1 . . . . . . . . . . . Fabricator Hacks 42 | . . . . . . 3 3 . 13 8 4 4 7 . Network Status 1 | . . . . . . . . . 1 . . . . . Load Schematic 27 | . . . . . . 2 2 . 8 5 3 3 4 . Build 14 | . . . . . . 1 1 . 4 3 1 1 3 . Repair Station Hacks 24 | . 1 . . . 2 . . . 15 2 . 4 . . Scan Component 13 | . 1 . . . 1 . . . 8 1 . 2 . . Repair 11 | . . . . . 1 . . . 7 1 . 2 . . Recycling Unit Hacks 5 | . . . . . . . . . . 1 . 4 . . Recycle Component 2 | . . . . . . . . . . . . 2 . . Process 1 | . . . . . . . . . . . . 1 . . Report Inventory 2 | . . . . . . . . . . 1 . 1 . . Scanalyzer 26 | . . . . . 4 4 5 . 4 4 5 . . . Insert Component 6 | . . . . . . 1 1 . 2 1 1 . . . Analyze 9 | . . . . . . 1 3 . 2 1 2 . . . Retrieve Study 11 | . . . . . 4 2 1 . . 2 2 . . . Garrison Access Hacks 9 | . . . . . . 2 1 . 2 2 1 . 1 . Seal Access 9 | . . . . . . 2 1 . 2 2 1 . 1 . Unauthorized Hacks 36 | . . . . . . 4 2 . 6 5 4 4 5 6 Terminals 23 | . . . . . . 3 1 . 2 3 2 2 4 6 Assimilate 7 | . . . . . . 2 . . 1 2 1 1 . . Botnet 11 | . . . . . . 1 1 . 1 1 1 1 2 3 Skim 5 | . . . . . . . . . . . . . 2 3 Fabricators 13 | . . . . . . 1 1 . 4 2 2 2 1 . Recompile 13 | . . . . . . 1 1 . 4 2 2 2 1 . Repair Stations . | . . . . . . . . . . . . . . . Recycling Units . | . . . . . . . . . . . . . . . Scanalyzers . | . . . . . . . . . . . . . . . Garrison Access . | . . . . . . . . . . . . . . . Data Cores Recovered 4 | . . . . . 1 . . . . . 2 . . 1 Used 2 | . . . . . . . . . . . 1 . . 1 Hacking Detections 55 | . 1 . . . 3 15 4 . 10 6 3 7 2 4 Full Trace Events 2 | . . . . . . 1 . . . . . 1 . . Feedback Events . | . . . . . . . . . . . . . . . Feedback Blocked . | . . . . . . . . . . . . . . . Robot Schematics Acquired . | . . . . . . . . . . . . . . . Robots Built . | . . . . . . . . . . . . . . . Authchips . | . . . . . . . . . . . . . . . Time . | . . . . . . . . . . . . . . . Total Robot Build Rating . | . . . . . . . . . . . . . . . Part Schematics Acquired 17 | . . . . . . 3 1 . 4 2 6 1 . . Parts Built 18 | . . . . . . 1 1 . 5 4 2 1 4 . Authchips 13 | . . . . . . . 1 . 4 3 1 1 3 . Time 803 | . . . . . . 36 36 . 296 131 58 84 162 . Total Part Build Rating 84 | . . . . . . 3 3 . 20 20 14 6 18 . Part Studies Acquired 11 | . . . . . 4 2 1 . . 2 2 . . . Parts Repaired 11 | . . . . . 1 . . . 7 1 . 2 . . Time 458 | . . . . . 26 . . . 326 25 . 81 . . Parts Recycled 2 | . . . . . . . . . . . . 2 . . Recycled Matter 38 | . . . . . . . . . . . . 38 . . Retrieved Matter . | . . . . . . . . . . . . . . . Retrieved Components . | . . . . . . . . . . . . . . . Parts Scanalyzed 6 | . . . . . . 1 1 . 2 1 1 . . . Part Schematics Acquired 6 | . . . . . . 1 1 . 2 1 1 . . . Parts Damaged 2 | . . . . . . . . . 2 . . . . . Bothacking | -11 -10 -10 -10 -9 -8 -7 -6 -6 -6 -5 -4 -3 -2 -1 ------------ Run | Yrd Mat Min Exi Min Mat Fac Fac Was Fac Fac Fac Res Res Acc Used RIF Installer . | . . . . . . . . . . . . . . . Robots Hacked . | . . . . . . . . . . . . . . . Non-combat . | . . . . . . . . . . . . . . . Combat . | . . . . . . . . . . . . . . . Robot Hacks Applied . | . . . . . . . . . . . . . . . Relay Couplers Released . | . . . . . . . . . . . . . . . Fabnet Peak Effective % . | . . . . . . . . . . . . . . . Robots Rewired . | . . . . . . . . . . . . . . . Allies Hacked . | . . . . . . . . . . . . . . . Hacks Repelled . | . . . . . . . . . . . . . . . Allies | -11 -10 -10 -10 -9 -8 -7 -6 -6 -6 -5 -4 -3 -2 -1 -------- Run | Yrd Mat Min Exi Min Mat Fac Fac Was Fac Fac Fac Res Res Acc Total Allies 7 | . . 1 . . . 2 . . . 2 1 1 . . Largest Group 2 | . . 1 1 . . 2 . . . 2 2 1 . . Highest-Rated Group 52 | . . 31 31 . . 52 . . . 52 52 26 . . Highest-Rated Ally 31 | . . 31 31 . . 26 . . . 26 26 26 . . Total Orders 10 | . . . . . . 7 . . . . 2 1 . . STAY 6 | . . . . . . 4 . . . . 1 1 . . FOLLOW 4 | . . . . . . 3 . . . . 1 . . . Ally Attacks . | . . . . . . . . . . . . . . . Total Damage . | . . . . . . . . . . . . . . . Kills . | . . . . . . . . . . . . . . . Allies Corrupted 2 | . . . . . . 1 . . . . 1 . . . Allies Melted . | . . . . . . . . . . . . . . . Intel | -11 -10 -10 -10 -9 -8 -7 -6 -6 -6 -5 -4 -3 -2 -1 ------- Run | Yrd Mat Min Exi Min Mat Fac Fac Was Fac Fac Fac Res Res Acc Active Infowar (turns) 6592 | 16 710 164 . . 549 959 667 16 1484 511 479 586 220 231 Optics 1798 | . . . . . 521 959 318 . . . . . . . Terrain 5589 | . . . . . 548 959 667 16 1453 511 479 586 139 231 Structural 5040 | . . . . . 522 833 626 16 1194 506 442 545 125 231 Seismic 890 | 16 710 164 . . . . . . . . . . . . ECM 142 | . . . . . . 125 2 . . . . 15 . . Robot Analysis Total . | . . . . . . . . . . . . . . . Derelict Logs Recovered 2 | . . 1 . 1 . . . . . . . . . . Drone Launches . | . . . . . . . . . . . . . . . Drone Recoveries . | . . . . . . . . . . . . . . . Exploration | -11 -10 -10 -10 -9 -8 -7 -6 -6 -6 -5 -4 -3 -2 -1 ------------- Run | Yrd Mat Min Exi Min Mat Fac Fac Was Fac Fac Fac Res Res Acc Turns Passed 7527 | 154 710 510 240 191 551 959 667 16 1492 511 488 586 221 231 Spaces Moved 13072 | 99 463 461 248 185 488 1821 1347 66 2499 1209 1392 1391 599 804 Core 5 | 5 . . . . . . . . . . . . . . Treads . | . . . . . . . . . . . . . . . Legs . | . . . . . . . . . . . . . . . Wheels 1938 | 94 463 461 248 185 487 . . . . . . . . . Hover . | . . . . . . . . . . . . . . . Flight 11129 | . . . . . 1 1821 1347 66 2499 1209 1392 1391 599 804 Fastest Speed 5 | 50 80 95 95 95 85 29 26 19 23 26 5 21 18 5 Average Speed 34 | 79 92 95 95 95 86 29 26 21 23 26 22 23 19 16 Slowest Speed 115 | 95 95 95 95 95 115 29 26 26 30 27 26 25 21 18 Overloaded Moves 139 | . . . . . . . . 38 . . 27 . . 74 Propulsion Burnouts . | . . . . . . . . . . . . . . . Robots Hopped 27 | . . . . . . 1 4 . 5 4 5 4 2 2 Potential Cave-ins 3 | . . . . . . 3 . . . . . . . . Cave-ins Triggered . | . . . . . . . . . . . . . . . Exploration Rate (%) 42 | 4 73 95 61 49 46 40 36 61 54 28 31 31 19 16 Regions Visited 14 Branch Regions 3 Pre-discovered Areas 2 | . . . 1 1 . . . . . . . . . . Known Exits Taken 7 | . . . . . 1 1 . . 1 1 1 1 1 . Unknown Exits Taken 5 | 1 1 1 1 1 . . . . . . . . . . Scrap Searched 4 | . . 2 . 2 . . . . . . . . . . Spaces Dug 152 | . . . . . 1 50 33 . 20 3 12 22 3 8 Terrain Destroyed 202 | . . 32 . . 9 50 33 . 30 3 12 22 3 8 Melee 109 | . . . . . 1 18 22 . 20 3 12 22 3 8 Projectile 8 | . . . . . 8 . . . . . . . . . AOE 85 | . . 32 . . . 32 11 . 10 . . . . . Terrain Rammed . | . . . . . . . . . . . . . . . Walls Destroyed . | . . . . . . . . . . . . . . . Machines Disabled . | . . . . . . . . . . . . . . . Actions | -11 -10 -10 -10 -9 -8 -7 -6 -6 -6 -5 -4 -3 -2 -1 --------- Run | Yrd Mat Min Exi Min Mat Fac Fac Was Fac Fac Fac Res Res Acc Total 15723 | 135 668 515 253 201 620 2206 1624 67 3344 1390 1536 1594 694 876 Wait 2096 | 3 131 31 . 12 82 329 223 . 764 146 116 126 77 56 Move 13004 | 98 462 460 247 184 487 1818 1339 65 2488 1200 1381 1382 594 799 Hop 27 | . . . . . . 1 4 . 5 4 5 4 2 2 Pick Up 117 | 7 18 2 2 3 12 11 8 . 17 13 8 11 4 1 Fast Attach 23 | 7 . . . . . . 1 . 11 1 . 1 2 . Attach 51 | . . . 1 . 12 6 3 . 6 6 3 5 6 3 Detach 8 | . . . . . 1 2 1 . . 1 . 1 2 . Swap 72 | . 7 5 . . 8 5 4 1 12 8 3 14 3 2 Drop 82 | 2 10 4 3 2 17 7 5 1 12 7 5 6 1 . Fire 75 | 18 40 13 . . . 3 1 . . . . . . . Melee 142 | . . . . . 1 24 24 . 29 4 15 29 3 13 Ram . | . . . . . . . . . . . . . . . Kick . | . . . . . . . . . . . . . . . Crush . | . . . . . . . . . . . . . . . Escape Stasis 26 | . . . . . . . 11 . . . . 15 . . Rewire . | . . . . . . . . . . . . . . . Trap . | . . . . . . . . . . . . . . . Miscellaneous . | . . . . . . . . . . . . . . . Route ------- -11/Scrapyard -10/Materials (discovered 2 exits: [*Mat] / *Min) -10/Mines (discovered 3 exits: [*Mat x2] / *Exi) -10/Exiles -9/Mines -8/Materials (discovered 3 exits: *Fac x3) -7/Factory (discovered 5 exits: *Fac x4 / [*Low]) -6/Factory (discovered 4 exits: *Fac x4) -6/Waste -6/Factory (discovered 6 exits: *Fac x4 / [*Low x2]) -5/Factory (discovered 6 exits: *Fac x4 / Upp x2) -4/Factory (discovered 4 exits: *Res x4) -3/Research (discovered 3 exits: *Res x3) -2/Research (discovered 3 exits: *Acc x3) -1/Access To Epsilon Eridani History --------- Turn | Location | Event 19 | -11/Scrapyard | Discovered new exit (range 16) 155 | -11/Scrapyard | Entered Materials 316 | -10/Materials | Build established: Mutant 672 | -10/Materials | Discovered new exit (range 5) 697 | -10/Materials | Discovered new exit (range 6) 865 | -10/Materials | Entered Mines 972 | -10/Mines | Learned Materials stockpile data 1023 | -10/Mines | Met a Derelict shopkeep closing up shop 1075 | -10/Mines | Discovered new exit (range 5) 1137 | -10/Mines | Discovered new exit (range 9) 1171 | -10/Mines | Received a Mining Laser from a helpful Derelict 1361 | -10/Mines | Deemed a non-threat by the Exiles lab entrance 1361 | -10/Mines | Discovered new exit (range 5) 1375 | -10/Mines | Entered Exiles 1375 | -10/Exiles | Accompanied by 1 ally 1399 | -10/Exiles | Met 8R-AWN 1420 | -10/Exiles | Met EX-HEX 1452 | -10/Exiles | Met EX-BIN 1464 | -10/Exiles | Aligned with FarCom system 1465 | -10/Exiles | Given EX-Vault access code 1489 | -10/Exiles | Opened EX-Vault 1496 | -10/Exiles | Found AWS/Thermal 1521 | -10/Exiles | Warned to stay clear of 0b10 Research branches 1546 | -10/Exiles | Met EX-DEC 1559 | -10/Exiles | Learned location of Zion (-6) 1602 | -10/Exiles | Discovered new exit (range 14) 1615 | -10/Exiles | Left Exiles lab with AWS/Thermal 1615 | -10/Exiles | Entered Mines 1630 | -9/Mines | Found the Drone Emporium 1711 | -9/Mines | Found DCF Scrap (13 items) 1795 | -9/Mines | Discovered new exit (range 6) 1806 | -9/Mines | Entered Materials 1806 | -8/Materials | Evolved 4 slots: Utility x4 2114 | -8/Materials | Build established: Scavenger-Skirmisher 2130 | -8/Materials | Repaired Structural Scanner 2254 | -8/Materials | Identified exit to Factory 2357 | -8/Materials | Entered Factory 2357 | -7/Factory | Evolved 2 slots: Propulsion x1, Utility x1 2790 | -7/Factory | Fabricated Hacking Suite (x1) 3036 | -7/Factory | Identified exit to Factory 3098 | -7/Factory | Build established: Hacker-Scout 3104 | -7/Factory | Discovered new exit (range 6) 3316 | -7/Factory | Entered another Factory area 3316 | -6/Factory | Evolved 2 slots: Propulsion x1, Utility x1 3632 | -6/Factory | Fabricated Hacking Suite (x1) 3667 | -6/Factory | Identified exit to Factory 3881 | -6/Factory | Central database locked down 3983 | -6/Factory | Sucked down chute 3983 | -6/Factory | Entered Waste 3987 | -6/Waste | Spotted C-40 Crusher 3993 | -6/Waste | Spotted C-40 Crusher 3993 | -6/Waste | Spotted C-40 Crusher 3994 | -6/Waste | Spotted C-40 Crusher 3996 | -6/Waste | Discovered new exit (range 15) 3997 | -6/Waste | Spotted C-40 Crusher 3998 | -6/Waste | EMP discharged 3999 | -6/Waste | Entered Factory 4055 | -6/Factory | Repaired Adv. Surge Thruster 4270 | -6/Factory | Fabricated System Restoration Module (x2) 4402 | -6/Factory | Repaired Mni. Grenade Launcher+ 4428 | -6/Factory | Repaired Lgt. Fission Core 4635 | -6/Factory | Fabricated Cld. VTOL Module (x1) 4749 | -6/Factory | Fabricated Cld. VTOL Module (x1) 4776 | -6/Factory | Central database locked down 4800 | -6/Factory | Discovered new exit (range 9) 4921 | -6/Factory | Fabricated Cld. VTOL Module? 5172 | -6/Factory | Repaired Broken Imp. Reaction Control System? 5194 | -6/Factory | Discovered new exit (range 7) 5317 | -6/Factory | Repaired Structural Scanner 5407 | -6/Factory | Repaired Broken Cld. VTOL Module 5480 | -6/Factory | Repaired Cld. VTOL Module 5491 | -6/Factory | Entered another Factory area 5491 | -5/Factory | Evolved 2 slots: Utility x2 5533 | -5/Factory | Repaired Lgt. Fission Core 5622 | -5/Factory | Found Prototype Processor 5622 | -5/Factory | Identified Exp. Targeting Computer 5644 | -5/Factory | Discovered new exit (range 6) 5684 | -5/Factory | Fabricated Cld. VTOL Module (x1) 5718 | -5/Factory | Identified exit to Factory 5735 | -5/Factory | Identified exit to Upper Caves 5771 | -5/Factory | Build established: Wizard-Scout 5835 | -5/Factory | Fabricated Lgt. Fission Core (x2) 5993 | -5/Factory | Fabricated Cld. Nuclear Pulse Thruster (x1) 6002 | -5/Factory | Entered another Factory area 6002 | -4/Factory | Accompanied by 1 ally 6002 | -4/Factory | Evolved 2 slots: Power x1, Propulsion x1 6007 | -4/Factory | Identified exit to Research 6409 | -4/Factory | Fabricated Imp. Phase Shifter (x2) 6490 | -4/Factory | Entered Research 6490 | -3/Research | Evolved 2 slots: Utility x2 6536 | -3/Research | Found Prototype Device 6537 | -3/Research | Identified Exp. ECM Suite 6672 | -3/Research | Identified exit to Research 6923 | -3/Research | Repaired Broken Cld. Nuclear Pulse Thruster 6950 | -3/Research | Repaired Power Sword+ 6968 | -3/Research | Fabricated Mni. Smartbomb Launcher (x1) 7041 | -3/Research | Unchained authorized (6S-H0T) 7076 | -3/Research | Entered another Research area 7076 | -2/Research | Evolved 2 slots: Power x1, Propulsion x1 7086 | -2/Research | Identified exit to Access 7174 | -2/Research | Fabricated Hacking Suite? 7195 | -2/Research | Fabricated Hacking Suite? 7269 | -2/Research | Fabricated Adv. Cooling System (x2) 7277 | -2/Research | Unchained authorized (6S-H0T) 7297 | -2/Research | Entered Access 7297 | -1/Access | Evolved 2 slots: Utility x2 7340 | -1/Access | Identified exit to Surface 7490 | -1/Access | Unchained authorized (6S-H0T) 7528 | *** | Escaped! Last Messages --------------- 07487_ Sneak attack on R-10 Processor. 07487_ Destroyed Com. Wheel. 07487_ Destroyed Hpw. Tractor Beam. 07487_ R-10 Processor destroyed. 07489_ U-05 Engineer destroyed. 07490_ ALERT: Unchained "6S-H0T" authorized to operate in -1/Access, avoid or assist as necessary. 07490_ Acquired 96 matter. 07493_ W-44 Eye sends out distress signal. 07503_ Discarded System Shield. 07524_ Discarded Adv. Terrain Scan Processor. 07528_ ALERT: Potential suspicious activity detected, Programmers report to Access Zone 5R. 07528_ Connecting with Terminal... >>Open(Door) Sealed Barrier opened. 07528_ The Access Shell folds into the floor. [Achievement: Epsilon Run] Map ----- +----------------------------------------------------+ | ? ? ? ############????? ??????????????????? | | ??? ??? ?? ############????????????????????????? | | #? ? # ##????????????????????????? | | ?#???##+###### ##??????#?#???????????????? | | ??? # " ##????????#???????????????? | | ? # """ ##????????????????????????? | | ########### # """ ##?????#??????????????????? | | ####### ### + " ##????????????????????????? | | [ # # ##????????????????????????? | | !!! # # ###???????????????????????? | | !!! # #############???????????????????????? | | !! + ?????????????????????? | | # Y????#???????????????? | | # ##############??????????????????????? | | # ##############??????????????????????? | | =# ##???#??????????????????????????????? | | ####+###### ##??????#??#????#???????????????????? | | #### ###### ###??#####??#???????????????????????? | | # ###### ###################?????????????????? | | # ###### ####### ###########?????????????????? | | # ##??## """T""" ""?????????????????? | | # ###### """ """ "????BB????????????? | | " *# ###?## "????BB????????????? | | # ###### "??????????????????? | | # ##?### u s "" "??????????????????? | | # ###?## s @" "??????????????????? | | # ###### ss "??????????????????? | | #/## ###### k "????BB????????????? | | ###?##Ag s "????BB????????????? | | ###### s ""?????????????????? | | ######### ####### ###########?????????????????? | | ########### ###################?????????????????? | | ### #??#?######?????????????????????????? | | ### ??? ? ??????????????????????????? | | = ### ? ?????????????????????????????? | | !! ! ### ?? ? ?? ???????????????????????????? | | %| ### ? ? ??????????????????????????? | | !! ### ??#?+#???#??????????????????????????? | | ########### ?#? ? ?? ???????????????????????????? | | # ? ? ?? ? ???#???????????????????????? | | # ??? ? ? ????????????????????????????? | | " # ? ? ?????????????????????????????? | | "" # + ?? ?????????????????????????????? | | "" # ?? ? ??????????????????????????????? | | "" + # ??] ? ????????????????????????????? | | "" + + ?? ??????????????????????????????? | | "" # ?#?##????????????????????????????????? | | "" # #?##?#??????????????????????????????? | | " ? ? ???? ???????????????????????????????? | | ???#?#?????????????????????????????????? | +----------------------------------------------------+ Best States ------------- Heat Dissipation 83 Energy Generation 46 Energy Capacity 310 Matter Stores 300 Matter Capacity 300 Sight Range 20 Terrain Scan Range 20 Terrain Scan Density 210 ECM Strength 3 Armor Coverage 150 Phase Shifting 10 Evasion (%) 88 Offensive Hacking 62 Defensive Hacking 36 Authchip Count 2 Item Schematics ----------------- Structural Scanner | -7/Factory | Scanalyzed Hacking Suite | -7/Factory | Hacked System Shield | -7/Factory | Hacked VTOL Module | -6/Factory | Scanalyzed System Restoration Module | -6/Factory | Hacked Cld. VTOL Module | -6/Factory | Hacked Imp. Reaction Control System | -6/Factory | Scanalyzed Imp. System Restoration Module | -6/Factory | Scanalyzed Lgt. Fission Core | -5/Factory | Scanalyzed Cld. Nuclear Pulse Thruster | -5/Factory | Hacked Imp. Phase Shifter | -4/Factory | Hacked Mic. Fission Core | -4/Factory | Scanalyzed Adv. Reaction Control System | -4/Factory | Hacked Imp. Cloaking Device | -4/Factory | Hacked Mni. Smartbomb Launcher | -4/Factory | Hacked Cloaking Device | -4/Factory | Hacked Adv. Cooling System | -3/Research | Hacked Robot Schematics ------------------ None Fabricated ------------ Hacking Suite | x1 | -7/Factory Hacking Suite | x1 | -6/Factory | Authchip System Restoration Module | x2 | -6/Factory | Authchip Cld. VTOL Module | x1 | -6/Factory | Authchip Cld. VTOL Module | x1 | -6/Factory | Authchip Cld. VTOL Module | x1 | -6/Factory | Authchip Cld. VTOL Module | x1 | -5/Factory | Authchip Lgt. Fission Core | x2 | -5/Factory | Authchip Cld. Nuclear Pulse Thruster | x1 | -5/Factory | Authchip Imp. Phase Shifter | x2 | -4/Factory | Authchip Mni. Smartbomb Launcher | x1 | -3/Research | Authchip Hacking Suite | x1 | -2/Research | Authchip Hacking Suite | x1 | -2/Research | Authchip Adv. Cooling System | x2 | -2/Research | Authchip Repaired ---------- Structural Scanner | 55% | -8/Materials Adv. Surge Thruster | 43% | -6/Factory Mni. Grenade Launcher | 30% | -6/Factory Lgt. Fission Core | 61% | -6/Factory Imp. Reaction Control System | 99% | -6/Factory | Broken Structural Scanner | 20% | -6/Factory Cld. VTOL Module | 38% | -6/Factory | Broken Cld. VTOL Module | 45% | -6/Factory Lgt. Fission Core | 61% | -5/Factory Cld. Nuclear Pulse Thruster | 72% | -3/Research | Broken Power Sword | 43% | -3/Research Studied --------- VTOL Module | -8/Materials | Hacked Wheel | -8/Materials | Hacked Lgt. Nuclear Core | -8/Materials | Hacked Mni. Grenade Launcher | -8/Materials | Hacked Mic. Nuclear Core | -7/Factory | Hacked Great Axe | -7/Factory | Hacked Chainsword | -6/Factory | Hacked Lgt. Fission Core | -5/Factory | Hacked Power Sword | -5/Factory | Hacked Mic. Fission Core | -4/Factory | Hacked Field Propulsion Drive | -4/Factory | Hacked Alien Tech Used ----------------- None Achievements -------------- Denied? Epsilon Run Production Line Recruitment Drive Speed Demon Supersonic Whoosh! Challenges ------------ None Game ------ Seed ShrapnelRingEdition Manual? 0 Play Time 05:38:26 Cumulative 50.1 hours Start 2025.12.23 @ 02:05:58 End 2025.12.23 @ 08:29:33 Sessions 1 Manual Loads 0 Difficulty Rogue Special Mode None Game No. 15 Rogue 15 Adventurer 0 Explorer 0 Win Type 0 Total 1 Types 1/0/0/0/0/0/0/0/0/0 Lore% 10 Gallery% 21 Achievement% 22 Wizard Run 0 Options --------- Layout 1 ASCII 0 Keyboard 0 Movement Mouse Keybinds 0 Fullscreen 1 Font 24/Smallcaps Map View 50x35 Zoom Use 0% Tactical HUD 1 Map Filters NONE Filters NONE Steam 1 RUN: 9764b8a6-37d2-4ff0-95b6-993314179e47